{"text_format":"1","workbook":"xlsx","n_sheets":3,"sheets":["Accueil","Partants","CalculValeur"],"not_rendered":{"charts":0,"images":3,"macros":1,"external_links":0,"defined_names":0,"comments":1,"pivot_tables":0},"unopened":[],"bounds":{"document_bytes":16777216,"sheet_cells":100000,"rows_first":2000,"rows_last":500,"rows_between":2000,"halvings":0,"cell_chars":16384,"cell_head_chars":4096},"cells_cut":0,"cells_raw":0,"read":"whole","date_system":"1900"}

{"sheet":"Accueil","index":0,"n_rows":11,"n_cols":6,"rows_kept":11,"cut":false,"hidden":false,"merged":[[1,2,1,3]]}
[]
[null,null,"Sélectionnez une date",null,{"$f":"IF($F$2=\"Aujourd'hui\",TODAY(),TODAY()+1)","v":"2022-09-03"},"Aujourd'hui"]
[]
[]
[]
[]
[]
[]
[]
[]
[null,null,null,null," "]

{"sheet":"Partants","index":1,"n_rows":461,"n_cols":2,"rows_kept":461,"cut":false,"hidden":false,"merged":[]}
[]
[]
[]
[]
["1.QURIEUX DU PONCHET\r\ntrotteur français , 6 ans "]
["Date de naissance","2004-01-01"]
["Sexe","Hongre"]
["Robe","ALEZAN"]
["Père","Ideal de l'iton"]
["Mère","Diane du vast"]
["Père de la mère"]
["Propriétaire","CH. TREYER "]
["Couleur propriétaire","Beige, m. et t. oran... "]
["Eleveur","- "]
["Entraineur","P. HERNOT "]
["Nbre de courses courues",{"$f":"#REF!","v":{"$error":"#REF!"}}]
["Nbre de victoires",{"$f":"#REF!","v":{"$error":"#REF!"}}]
["Nbre de places",{"$f":"#REF!","v":{"$error":"#REF!"}}]
["Performances",{"$f":"#REF!","v":{"$error":"#REF!"}}]
["Gains carrière",{"$f":"#REF!","v":{"$error":"#REF!"}}]
["Gains de l’année en France",{"$f":"H6*1000","v":0}]
["Gains année précedente",{"$f":"G6*1000","v":0}]
["Gains en victoire",{"$f":"#REF!","v":{"$error":"#REF!"}}]
["Record","01:15:02"]
[]
[]
[]
["2.QUANITO PIERRE\r\ntrotteur français , 6 ans "]
["Date de naissance","2004-01-01"]
["Sexe","Hongre"]
["Robe","BAI"]
["Père","Podosis"]
["Mère","Juanita d'occagnes"]
["Père de la mère"]
["Propriétaire","MLLE CH. DURANDE "]
["Couleur propriétaire","Noire, bande blanche... "]
["Eleveur","- "]
["Entraineur","P. PICOT "]
["Nbre de courses courues",{"$f":"#REF!","v":{"$error":"#REF!"}}]
["Nbre de victoires",{"$f":"#REF!","v":{"$error":"#REF!"}}]
["Nbre de places",{"$f":"#REF!","v":{"$error":"#REF!"}}]
["Performances",{"$f":"#REF!","v":{"$error":"#REF!"}}]
["Gains carrière",{"$f":"#REF!","v":{"$error":"#REF!"}}]
["Gains de l’année en France",{"$f":"H7*1000","v":0}]
["Gains année précedente",{"$f":"G7*1000","v":0}]
["Gains en victoire",{"$f":"#REF!","v":{"$error":"#REF!"}}]
["Record","01:16:05"]
[]
[]
[]
["3.PETERHOF\r\ntrotteur français , 7 ans "]
["Date de naissance","2003-01-01"]
["Sexe","Hongre"]
["Robe","NOIR"]
["Père","Jardy"]
["Mère","Troika du buisson"]
["Père de la mère"]
["Propriétaire","MME B. BEAUCHENE "]
["Couleur propriétaire","Bleu-clair, éch. bla... "]
["Eleveur","- "]
["Entraineur","V. JARRY "]
["Nbre de courses courues",{"$f":"#REF!","v":{"$error":"#REF!"}}]
["Nbre de victoires",{"$f":"#REF!","v":{"$error":"#REF!"}}]
["Nbre de places",{"$f":"#REF!","v":{"$error":"#REF!"}}]
["Performances",{"$f":"#REF!","v":{"$error":"#REF!"}}]
["Gains carrière",{"$f":"#REF!","v":{"$error":"#REF!"}}]
["Gains de l’année en France",{"$f":"H8*1000","v":0}]
["Gains année précedente",{"$f":"G8*1000","v":0}]
["Gains en victoire",{"$f":"#REF!","v":{"$error":"#REF!"}}]
["Record","01:16:03"]
[]
[]
[]
["4.PRINCE DU HIDOUX\r\ntrotteur français , 7 ans "]
["Date de naissance","2003-01-01"]
["Sexe","Hongre"]
["Robe","BAI"]
["Père","Vivaldi de chenu"]
["Mère","Belle du cap"]
["Père de la mère"]
["Propriétaire","A. TROUVE "]
["Couleur propriétaire","Bleue, chevron noir,... "]
["Eleveur","- "]
["Entraineur","A. RAFFEGEAU "]
["Nbre de courses courues",{"$f":"#REF!","v":{"$error":"#REF!"}}]
["Nbre de victoires",{"$f":"#REF!","v":{"$error":"#REF!"}}]
["Nbre de places",{"$f":"#REF!","v":{"$error":"#REF!"}}]
["Performances",{"$f":"#REF!","v":{"$error":"#REF!"}}]
["Gains carrière",{"$f":"#REF!","v":{"$error":"#REF!"}}]
["Gains de l’année en France",{"$f":"H9*1000","v":0}]
["Gains année précedente",{"$f":"G9*1000","v":0}]
["Gains en victoire",{"$f":"#REF!","v":{"$error":"#REF!"}}]
["Record","01:18:02"]
[]
[]
[]
["5.POUSTOUF DU BLEUET\r\ntrotteur français , 7 ans "]
["Date de naissance","2003-01-01"]
["Sexe","Hongre"]
["Robe","ALEZAN"]
["Père","Gabor Star"]
["Mère","Viscountess"]
["Père de la mère"]
["Propriétaire","MME CH. MARCHAND "]
["Couleur propriétaire","Orange, étoile noire... "]
["Eleveur","- "]
["Entraineur","J. MARCHAND "]
["Nbre de courses courues",{"$f":"#REF!","v":{"$error":"#REF!"}}]
["Nbre de victoires",{"$f":"#REF!","v":{"$error":"#REF!"}}]
["Nbre de places",{"$f":"#REF!","v":{"$error":"#REF!"}}]
["Performances",{"$f":"#REF!","v":{"$error":"#REF!"}}]
["Gains carrière",{"$f":"#REF!","v":{"$error":"#REF!"}}]
["Gains de l’année en France",{"$f":"H10*1000","v":0}]
["Gains année précedente",{"$f":"G10*1000","v":0}]
["Gains en victoire",{"$f":"#REF!","v":{"$error":"#REF!"}}]
["Record","01:16:02"]
[]
[]
[]
["6.PRINCE D'HAVANE\r\ntrotteur français , 7 ans "]
["Date de naissance","2003-01-01"]
["Sexe","Hongre"]
["Robe","BAI F."]
["Père","Uranium de tillard"]
["Mère","Clairiolaine"]
["Père de la mère"]
["Propriétaire","P. DANET "]
["Couleur propriétaire","Bleue, brass., chevr... "]
["Eleveur","- "]
["Entraineur","P. DANET "]
["Nbre de courses courues",{"$f":"#REF!","v":{"$error":"#REF!"}}]
["Nbre de victoires",{"$f":"#REF!","v":{"$error":"#REF!"}}]
["Nbre de places",{"$f":"#REF!","v":{"$error":"#REF!"}}]
["Performances",{"$f":"#REF!","v":{"$error":"#REF!"}}]
["Gains carrière",{"$f":"#REF!","v":{"$error":"#REF!"}}]
["Gains de l’année en France",260]
["Gains année précedente",{"$f":"H11*1000","v":0}]
["Gains en victoire",{"$f":"#REF!","v":{"$error":"#REF!"}}]
["Record","01:14:07"]
[]
[]
[]
["7.PERLE DE GRANDCAMP\r\ntrotteur français , 7 ans "]
["Date de naissance","2003-01-01"]
["Sexe","Femelle"]
["Robe","ALEZAN"]
["Père","Pilobolus"]
["Mère","Elle est joyeuse"]
["Père de la mère"]
["Propriétaire","PH. PELTIER "]
["Couleur propriétaire","Verte, cr. de Lor. e... "]
["Eleveur","- "]
["Entraineur","PH. PELTIER "]
["Nbre de courses courues",{"$f":"#REF!","v":{"$error":"#REF!"}}]
["Nbre de victoires",{"$f":"#REF!","v":{"$error":"#REF!"}}]
["Nbre de places",{"$f":"#REF!","v":{"$error":"#REF!"}}]
["Performances",{"$f":"#REF!","v":{"$error":"#REF!"}}]
["Gains carrière",{"$f":"#REF!","v":{"$error":"#REF!"}}]
["Gains de l’année en France",{"$f":"H12*1000","v":0}]
["Gains année précedente",{"$f":"G12*1000","v":0}]
["Gains en victoire",{"$f":"#REF!","v":{"$error":"#REF!"}}]
["Record","01:15:02"]
[]
[]
[]
["8.QUASIMODO FACE\r\ntrotteur français , 6 ans "]
["Date de naissance","2004-01-01"]
["Sexe","Hongre"]
["Robe","BAI"]
["Père","Goetmals wood"]
["Mère","Uka des champs"]
["Père de la mère"]
["Propriétaire","S. ELKAEL "]
["Couleur propriétaire","Bleu-foncé, épaul. v... "]
["Eleveur","- "]
["Entraineur","L. BAUDRON "]
["Nbre de courses courues",{"$f":"#REF!","v":{"$error":"#REF!"}}]
["Nbre de victoires",{"$f":"#REF!","v":{"$error":"#REF!"}}]
["Nbre de places",{"$f":"#REF!","v":{"$error":"#REF!"}}]
["Performances",{"$f":"#REF!","v":{"$error":"#REF!"}}]
["Gains carrière",{"$f":"#REF!","v":{"$error":"#REF!"}}]
["Gains de l’année en France",{"$f":"H13*1000","v":0}]
["Gains année précedente",{"$f":"G13*1000","v":0}]
["Gains en victoire",{"$f":"#REF!","v":{"$error":"#REF!"}}]
["Record","01:14:02"]
[]
[]
[]
["9.PROUESSE D'ECHAL\r\ntrotteur français , 7 ans "]
["Date de naissance","2003-01-01"]
["Sexe","Femelle"]
["Robe","BAI"]
["Père","Sebrazac"]
["Mère","Diane de corveil"]
["Père de la mère"]
["Propriétaire","ECURIE CHRISTIAN BOISNARD "]
["Couleur propriétaire","Verte, brass. et éch... "]
["Eleveur","- "]
["Entraineur","CH. BOISNARD "]
["Nbre de courses courues",{"$f":"#REF!","v":{"$error":"#REF!"}}]
["Nbre de victoires",{"$f":"#REF!","v":{"$error":"#REF!"}}]
["Nbre de places",{"$f":"#REF!","v":{"$error":"#REF!"}}]
["Performances",{"$f":"#REF!","v":{"$error":"#REF!"}}]
["Gains carrière",{"$f":"#REF!","v":{"$error":"#REF!"}}]
["Gains de l’année en France",{"$f":"H14*1000","v":0}]
["Gains année précedente",{"$f":"G14*1000","v":0}]
["Gains en victoire",{"$f":"#REF!","v":{"$error":"#REF!"}}]
["Record","01:15:02"]
[]
[]
[]
["10.PTILOU DE JALK\r\ntrotteur français , 7 ans "]
["Date de naissance","2003-01-01"]
["Sexe","Hongre"]
["Robe","ALEZAN"]
["Père","Quibus D'Oger"]
["Mère","Glorieuse de Jalk"]
["Père de la mère"]
["Propriétaire","ECURIE LA PETTEVINIERE "]
["Couleur propriétaire","Verte, bret. et m. j... "]
["Eleveur","- "]
["Entraineur","S. ROGER "]
["Nbre de courses courues",{"$f":"#REF!","v":{"$error":"#REF!"}}]
["Nbre de victoires",{"$f":"#REF!","v":{"$error":"#REF!"}}]
["Nbre de places",{"$f":"#REF!","v":{"$error":"#REF!"}}]
["Performances",{"$f":"#REF!","v":{"$error":"#REF!"}}]
["Gains carrière",{"$f":"#REF!","v":{"$error":"#REF!"}}]
["Gains de l’année en France",{"$f":"H15*1000","v":0}]
["Gains année précedente",{"$f":"G15*1000","v":0}]
["Gains en victoire",{"$f":"#REF!","v":{"$error":"#REF!"}}]
["Record","01:15:00"]
[]
[]
[]
["11.VERSACE BOKO\r\ntrotteur étranger , 7 ans "]
["Date de naissance","2003-01-01"]
["Sexe","Hongre"]
["Robe","BAI F."]
["Père","Express ride"]
["Mère","Elisabeth boko"]
["Père de la mère"]
["Propriétaire","ECURIE WASA - EASY "]
["Couleur propriétaire","Bleue, épaul. blanch... "]
["Eleveur","- "]
["Entraineur","MME C. LUNDSTROM "]
["Nbre de courses courues",{"$f":"#REF!","v":{"$error":"#REF!"}}]
["Nbre de victoires",{"$f":"#REF!","v":{"$error":"#REF!"}}]
["Nbre de places",{"$f":"#REF!","v":{"$error":"#REF!"}}]
["Performances",{"$f":"#REF!","v":{"$error":"#REF!"}}]
["Gains carrière",{"$f":"#REF!","v":{"$error":"#REF!"}}]
["Gains de l’année en France",{"$f":"H16*1000","v":0}]
["Gains année précedente",{"$f":"G16*1000","v":0}]
["Gains en victoire",{"$f":"#REF!","v":{"$error":"#REF!"}}]
["Record","01:16:01"]
[]
[]
[]
["12.RECITAL PIERJI\r\ntrotteur français , 5 ans "]
["Date de naissance","2005-01-01"]
["Sexe","Mâle"]
["Robe","BAI BR"]
["Père","Joyau d'amour"]
["Mère","Lady pierji"]
["Père de la mère"]
["Propriétaire","P. JULIENNE "]
["Couleur propriétaire","Verte, cout., m. et ... "]
["Eleveur","- "]
["Entraineur","F. BLANDIN "]
["Nbre de courses courues",{"$f":"#REF!","v":{"$error":"#REF!"}}]
["Nbre de victoires",{"$f":"#REF!","v":{"$error":"#REF!"}}]
["Nbre de places",{"$f":"#REF!","v":{"$error":"#REF!"}}]
["Performances",{"$f":"#REF!","v":{"$error":"#REF!"}}]
["Gains carrière",{"$f":"#REF!","v":{"$error":"#REF!"}}]
["Gains de l’année en France",{"$f":"H17*1000","v":0}]
["Gains année précedente",{"$f":"G17*1000","v":0}]
["Gains en victoire",{"$f":"#REF!","v":{"$error":"#REF!"}}]
["Record","01:13:07"]
[]
[]
[]
["13.PAIS DE LA FRETTE\r\ntrotteur français , 7 ans "]
["Date de naissance","2003-01-01"]
["Sexe","Hongre"]
["Robe","BAI F."]
["Père","Icare de pouline"]
["Mère","Sais"]
["Père de la mère"]
["Propriétaire","F. LEBLANC "]
["Couleur propriétaire","Bleu-foncé, brass. e... "]
["Eleveur","- "]
["Entraineur","F. LEBLANC "]
["Nbre de courses courues",{"$f":"#REF!","v":{"$error":"#REF!"}}]
["Nbre de victoires",{"$f":"#REF!","v":{"$error":"#REF!"}}]
["Nbre de places",{"$f":"#REF!","v":{"$error":"#REF!"}}]
["Performances",{"$f":"#REF!","v":{"$error":"#REF!"}}]
["Gains carrière",{"$f":"#REF!","v":{"$error":"#REF!"}}]
["Gains de l’année en France",{"$f":"H18*1000","v":0}]
["Gains année précedente",{"$f":"G18*1000","v":0}]
["Gains en victoire",{"$f":"#REF!","v":{"$error":"#REF!"}}]
["Record","01:15:03"]
[]
[]
[]
["14.QUARTZ PIERJI\r\ntrotteur français , 6 ans "]
["Date de naissance","2004-01-01"]
["Sexe","Hongre"]
["Robe","BAI"]
["Père","Jasmin de flore"]
["Mère","Fiammetta"]
["Père de la mère"]
["Propriétaire","ECURIE FRANCK BLANDIN "]
["Couleur propriétaire","Verte, brass. et che... "]
["Eleveur","- "]
["Entraineur","F. BLANDIN "]
["Nbre de courses courues",{"$f":"#REF!","v":{"$error":"#REF!"}}]
["Nbre de victoires",{"$f":"#REF!","v":{"$error":"#REF!"}}]
["Nbre de places",{"$f":"#REF!","v":{"$error":"#REF!"}}]
["Performances",{"$f":"#REF!","v":{"$error":"#REF!"}}]
["Gains carrière",{"$f":"#REF!","v":{"$error":"#REF!"}}]
["Gains de l’année en France",{"$f":"H19*1000","v":0}]
["Gains année précedente",{"$f":"G19*1000","v":0}]
["Gains en victoire",{"$f":"#REF!","v":{"$error":"#REF!"}}]
["Record","01:13:08"]
[]
[]
[]
["15.ROMANE D'HERMES\r\ntrotteur français , 5 ans "]
["Date de naissance","2005-01-01"]
["Sexe","Femelle"]
["Robe","BAI"]
["Père","Fleuron Perrine"]
["Mère","Joyce My Girl"]
["Père de la mère"]
["Propriétaire","ECURIE MELODIE "]
["Couleur propriétaire","Bleu-foncé, épaul. r... "]
["Eleveur","- "]
["Entraineur","J.L. JANVIER "]
["Nbre de courses courues",{"$f":"#REF!","v":{"$error":"#REF!"}}]
["Nbre de victoires",{"$f":"#REF!","v":{"$error":"#REF!"}}]
["Nbre de places",{"$f":"#REF!","v":{"$error":"#REF!"}}]
["Performances",{"$f":"#REF!","v":{"$error":"#REF!"}}]
["Gains carrière",{"$f":"#REF!","v":{"$error":"#REF!"}}]
["Gains de l’année en France",{"$f":"H20*1000","v":0}]
["Gains année précedente",{"$f":"G20*1000","v":0}]
["Gains en victoire",{"$f":"#REF!","v":{"$error":"#REF!"}}]
["Record","01:15:03"]
[]
[]
[]
["16.QUERNER\r\ntrotteur français , 6 ans "]
["Date de naissance","2004-01-01"]
["Sexe","Mâle"]
["Robe","BAI"]
["Père","Jasmin de flore"]
["Mère","Jolie allure"]
["Père de la mère"]
["Propriétaire","L. BEJEAU "]
["Couleur propriétaire","Rouge, épaul. noires... "]
["Eleveur","- "]
["Entraineur","PH. BOUTIN "]
["Nbre de courses courues",{"$f":"#REF!","v":{"$error":"#REF!"}}]
["Nbre de victoires",{"$f":"#REF!","v":{"$error":"#REF!"}}]
["Nbre de places",{"$f":"#REF!","v":{"$error":"#REF!"}}]
["Performances",{"$f":"#REF!","v":{"$error":"#REF!"}}]
["Gains carrière",{"$f":"#REF!","v":{"$error":"#REF!"}}]
["Gains de l’année en France",{"$f":"H21*1000","v":0}]
["Gains année précedente",{"$f":"G21*1000","v":0}]
["Gains en victoire",{"$f":"#REF!","v":{"$error":"#REF!"}}]
["Record","01:15:01"]
[]
[]
[]
["17.QUADRO KID\r\ntrotteur français , 6 ans "]
["Date de naissance","2004-01-01"]
["Sexe","Hongre"]
["Robe","NOIR"]
["Père","L'As de Viretaute"]
["Mère","Kimberley"]
["Père de la mère"]
["Propriétaire","CH. DESMOTTES "]
["Couleur propriétaire","Bleue, m. et pois ja... "]
["Eleveur","- "]
["Entraineur","CH. DESMOTTES "]
["Nbre de courses courues",{"$f":"#REF!","v":{"$error":"#REF!"}}]
["Nbre de victoires",{"$f":"#REF!","v":{"$error":"#REF!"}}]
["Nbre de places",{"$f":"#REF!","v":{"$error":"#REF!"}}]
["Performances",{"$f":"#REF!","v":{"$error":"#REF!"}}]
["Gains carrière",{"$f":"#REF!","v":{"$error":"#REF!"}}]
["Gains de l’année en France",{"$f":"H22*1000","v":0}]
["Gains année précedente",{"$f":"G22*1000","v":0}]
["Gains en victoire",{"$f":"#REF!","v":{"$error":"#REF!"}}]
["Record","01:14:08"]
[]
[]
[]
["18.PUNCH ERCA\r\ntrotteur français , 7 ans "]
["Date de naissance","2003-01-01"]
["Sexe","Hongre"]
["Robe","ALEZAN"]
["Père","Jackpot du Relais"]
["Mère","Qussy"]
["Père de la mère"]
["Propriétaire","MME J. MORICE "]
["Couleur propriétaire","Bleu-foncé, bande ja... "]
["Eleveur","- "]
["Entraineur","JEAN MORICE "]
["Nbre de courses courues",{"$f":"#REF!","v":{"$error":"#REF!"}}]
["Nbre de victoires",{"$f":"#REF!","v":{"$error":"#REF!"}}]
["Nbre de places",{"$f":"#REF!","v":{"$error":"#REF!"}}]
["Performances",{"$f":"#REF!","v":{"$error":"#REF!"}}]
["Gains carrière",{"$f":"#REF!","v":{"$error":"#REF!"}}]
["Gains de l’année en France",{"$f":"H23*1000","v":0}]
["Gains année précedente",{"$f":"G23*1000","v":0}]
["Gains en victoire",{"$f":"#REF!","v":{"$error":"#REF!"}}]
["Record","01:14:04"]
[]
[]
[]
["19.PERLE DE VILLEROT\r\ntrotteur français , 7 ans "]
["Date de naissance","2003-01-01"]
["Sexe","Femelle"]
["Robe","BAI F."]
["Père","Easy To Drive"]
["Mère","Etoile Vinflo"]
["Père de la mère"]
["Propriétaire","ECURIE FRANCK BLANDIN "]
["Couleur propriétaire","Verte, brass. et che... "]
["Eleveur","- "]
["Entraineur","F. BLANDIN "]
["Nbre de courses courues",{"$f":"#REF!","v":{"$error":"#REF!"}}]
["Nbre de victoires",{"$f":"#REF!","v":{"$error":"#REF!"}}]
["Nbre de places",{"$f":"#REF!","v":{"$error":"#REF!"}}]
["Performances",{"$f":"#REF!","v":{"$error":"#REF!"}}]
["Gains carrière",{"$f":"#REF!","v":{"$error":"#REF!"}}]
["Gains de l’année en France",{"$f":"H24*1000","v":0}]
["Gains année précedente",{"$f":"G24*1000","v":0}]
["Gains en victoire",{"$f":"#REF!","v":{"$error":"#REF!"}}]
["Record"]
[]
[]
[]
["20.QUICKER MAGODA\r\ntrotteur français , 6 ans "]
["Date de naissance","2004-01-01"]
["Sexe","Hongre"]
["Robe","ALEZAN"]
["Père","Vroum d'or"]
["Mère","Duchesse magoda"]
["Père de la mère"]
["Propriétaire","ECURIE S.G. DUPONT "]
["Couleur propriétaire","Bleu-foncé, bret. ve... "]
["Eleveur","- "]
["Entraineur"]
["Nbre de courses courues",{"$f":"#REF!","v":{"$error":"#REF!"}}]
["Nbre de victoires",{"$f":"#REF!","v":{"$error":"#REF!"}}]
["Nbre de places",{"$f":"#REF!","v":{"$error":"#REF!"}}]
["Performances",{"$f":"#REF!","v":{"$error":"#REF!"}}]
["Gains carrière",{"$f":"#REF!","v":{"$error":"#REF!"}}]
["Gains de l’année en France",{"$f":"H25*1000","v":0}]
["Gains année précedente",{"$f":"G25*1000","v":0}]
["Gains en victoire",{"$f":"#REF!","v":{"$error":"#REF!"}}]
["Record"]

{"sheet":"CalculValeur","index":2,"n_rows":21,"n_cols":12,"rows_kept":21,"cut":false,"hidden":false,"merged":[]}
[null,"NC","NV","NP3","GV","GVP","P1","P2","P3","P4","P5","P6"]
[1,78,4,28,39.15,271.23,7,0,7,4,3,8]
[2,58,8,7,169.65,272.95,6,0,0,0,0,0]
[3,95,13,22,129.15,277.5,3,5,7,4,0,0]
[4,127,14,16,173.7,279.63,4,0,0,0,0,0]
[5,74,3,24,44.1,283.2,0,3,0,7,5,2]
[6,89,4,19,48.6,284.12,7,9,0,0,0,6]
[7,55,8,12,134.55000000000001,285.87,8,5,6,0,5,5]
[8,55,10,10,184.95,287.38,4,6,0,3,0,0]
[9,88,9,18,89.1,288.88,1,0,1,9,4,0]
[10,56,8,16,130.94999999999999,289.5,0,3,2,2,3,0]
[11,96,7,29,92.7,295.16000000000003,0,2,6,1,1,3]
[12,64,8,15,117,298.57,5,6,0,8,0,0]
[13,102,5,16,94.5,304.49,9,7,0,0,0,0]
[14,65,13,14,146.69999999999999,305.79000000000002,4,0,5,0,0,8]
[15,81,10,23,153.44999999999999,307.17,0,4,6,4,1,7]
[16,75,14,14,160.19999999999999,307.33,2,1,8,0,0,0]
[17,0,0,0]
[18]
[19]
[20]